bitfinex/quotes_ETHUSD_20260226
["timestamp","ask_amount","ask_price","bid_price","bid_amount"]
[1772134502657,1.05769775,2030.7,2030.0,0.001]
[1772134502860,1.05769775,2030.7,2030.1,1.03129364]
[1772134503058,1.466,2030.8,2030.1,1.03129364]
[1772134503436,2.52369775,2030.8,2030.1,1.03129364]
[1772134503633,1.05769775,2030.7,2030.1,1.03129364]
[1772134504048,1.05769775,2030.7,2030.0,1.23247288]
[1772134504049,1.05769775,2030.4,2030.0,0.001]
[1772134504761,1.23122383,2030.5,2030.0,1.02932788]
[1772134506064,1.05769775,2030.6,2030.1,2.25396198]
[1772134507264,1.05769775,2030.6,2030.0,1.23247855]
[1772134507445,1.05769775,2030.6,2030.0,0.001]
[1772134508190,1.05769775,2030.4,2030.0,0.001]
[1772134508345,2.28889136,2030.6,2030.0,1.01780935]
[1772134508557,1.05769775,2030.6,2030.0,1.01780935]
[1772134509185,1.23110425,2030.7,2030.0,1.01780935]
[1772134509333,3.75478557,2030.8,2030.0,1.01780935]
[1772134509546,2.52369775,2030.8,2030.0,1.01780935]
[1772134510171,2.52369775,2030.8,2030.2,1.00486202]
[1772134510172,1.466,2030.8,2030.2,1.00486202]
[1772134510362,1.00042849,2030.1,2029.8,0.001]
[1772134512080,1.00042849,2029.9,2029.4,0.001]
[1772134512256,1.23152709,2030.0,2029.4,2.23699615]
[1772134512660,1.23152709,2030.0,2029.4,1.00510653]
[1772134512969,1.23152709,2030.0,2029.4,2.23699531]
[1772134513145,2.23194412,2030.1,2029.4,2.23699531]
[1772134513344,1.00042849,2030.3,2029.5,1.00146314]
[1772134513776,1.00042849,2030.3,2030.0,0.001]
[1772134514478,1.23140577,2030.2,2030.0,0.001]
[1772134515477,2.23183426,2030.2,2030.0,0.001]
[1772134515685,1.00042849,2030.1,2029.7,0.001]
[1772134516370,2.23193805,2030.1,2029.7,0.001]
[1772134517280,1.468,2030.2,2029.7,0.99218583]
[1772134517874,1.00242849,2030.6,2029.7,0.99218583]
[1772134518179,1.00242849,2030.6,2029.9,0.98869012]
[1772134518180,0.002,2030.6,2029.9,0.98869012]
[1772134518481,0.002,2030.6,2030.1,0.98869012]
[1772134520679,0.002,2030.6,2030.2,2.21518113]
[1772134521184,0.002,2030.6,2030.3,0.9813718]
[1772134521479,0.002,2030.8,2030.3,0.9813718]
[1772134522181,0.002,2031.1,2030.4,0.97898691]
[1772134522560,0.002,2031.1,2030.6,0.97898691]
[1772134523096,1.00242849,2031.1,2030.2,0.97662914]
[1772134523294,1.00242849,2031.1,2030.0,2.20811089]
[1772134523660,1.00242849,2031.1,2030.0,1.23148175]
[1772134523858,1.00242849,2031.1,2030.1,0.97429758]
[1772134525191,1.00042849,2030.9,2030.1,2.20573245]
[1772134525609,1.00042849,2030.9,2029.8,1.23164843]
[1772134525891,1.00042849,2030.9,2029.7,4.92771119]
[1772134525892,1.00042849,2030.6,2029.7,2.2046706]
[1772134526080,1.00042849,2030.5,2029.7,2.2046706]
[1772134526289,1.00042849,2030.5,2029.9,0.001]
[1772134526499,1.00242849,2030.4,2029.9,0.001]
[1772134528601,1.23134512,2030.3,2029.9,0.001]
[1772134528803,2.23375501,2030.4,2029.9,0.001]
[1772134529003,1.00242849,2030.4,2029.9,0.001]
[1772134529296,6.39178718,2030.6,2030.0,0.96303949]
[1772134529297,2.69818395,2030.6,2030.0,0.96303949]
[1772134529482,3.69861244,2030.6,2030.0,0.96303949]
[1772134531005,3.69861244,2030.6,2029.9,0.001]
[1772134531006,1.00042849,2030.5,2029.9,0.001]
[1772134531173,1.00042849,2030.5,2029.9,1.23258331]
[1772134531684,1.00042849,2030.5,2029.9,0.001]
[1772134532003,1.00042849,2030.5,2029.9,1.23258447]
[1772134532304,1.00042849,2030.5,2029.9,0.001]
[1772134533103,1.23128447,2030.4,2029.9,0.001]
[1772134533312,2.23171296,2030.4,2029.9,0.001]
[1772134534179,2.23171296,2030.4,2029.9,0.93633232]
[1772134534509,1.23126988,2030.5,2029.9,0.93633232]
[1772134535404,1.23126988,2030.5,2030.0,0.92913147]
[1772134536786,3.69863529,2030.6,2030.0,0.92913147]
[1772134537110,1.467,2030.6,2030.0,0.92913147]
[1772134537294,1.23302327,2030.9,2030.0,0.92913147]
[1772134537498,1.23302327,2030.9,2030.3,0.91094192]
[1772134538811,0.002,2030.5,2030.1,1.23241824]
[1772134539106,0.002,2030.5,2030.2,0.89915568]
[1772134540089,0.97996007,2030.5,2030.1,0.001]
[1772134542020,0.97796007,2030.3,2030.1,0.001]
[1772134542635,0.97796007,2030.3,2029.9,0.001]
[1772134543119,0.97796007,2030.3,2029.7,0.001]
[1772134543823,0.97796007,2030.3,2029.7,0.86740466]
[1772134544122,1.23128447,2030.4,2029.7,0.86740466]
[1772134544621,1.23128447,2030.4,2029.7,2.09907673]
[1772134544920,2.20924454,2030.4,2029.7,2.09907673]
[1772134545217,2.20924454,2030.4,2029.7,0.86740466]
[1772134546401,2.20924454,2030.4,2029.7,2.0991107]
[1772134546722,1.23140577,2030.2,2029.7,2.09911308]
[1772134547013,2.20936584,2030.2,2029.7,0.001]
[1772134550517,2.20936584,2030.2,2029.6,1.23276473]
[1772134550518,0.97796007,2030.1,2029.6,0.001]
[1772134550815,0.97796007,2029.9,2029.6,0.001]
[1772134552308,0.97796007,2029.9,2029.8,0.001]
[1772134552698,2.20954783,2029.9,2029.8,0.001]
[1772134553098,2.20954783,2029.9,2029.6,0.001]
[1772134555318,0.97796007,2029.8,2029.6,0.001]
[1772134557220,1.23170911,2029.7,2029.6,0.001]
[1772134557430,2.70556995,2030.0,2029.6,0.80285033]
[1772134557801,0.97796007,2029.9,2029.6,0.001]
[1772134558117,0.97796007,2029.9,2029.4,0.001]
[1772134558830,0.97796007,2029.8,2029.4,0.001]
[1772134559204,0.97796007,2029.8,2029.1,0.001]
[1772134559826,0.97796007,2029.6,2029.1,0.001]
[1772134560030,0.97796007,2029.4,2029.1,0.001]
[1772134561829,1.2319519,2029.3,2029.1,0.001]
[1772134564134,2.71386799,2029.5,2029.1,0.77245107]
[1772134564343,1.482,2029.5,2029.1,0.77245107]
[1772134564546,5.90434676,2029.9,2029.4,0.77145107]
[1772134564547,1.485,2029.8,2029.4,0.77145107]
[1772134565904,2.71666796,2029.8,2029.4,0.77145107]
[1772134568634,1.485,2029.8,2029.4,0.77145107]
[1772134568835,2.71664949,2029.8,2029.4,0.77145107]
[1772134573415,2.71664949,2029.8,2029.3,0.001]
[1772134573615,3.66209656,2029.8,2029.3,0.001]
[1772134573817,0.94544707,2029.7,2029.3,0.001]
[1772134574012,2.71664949,2029.8,2029.3,0.72794909]
[1772134575342,3.66209656,2029.8,2029.3,0.72794909]
[1772134575561,0.94544707,2029.7,2029.3,0.001]
[1772134577149,1.2337698,2029.6,2029.3,0.001]
[1772134578356,0.94544707,2029.5,2029.1,0.001]
[1772134579057,1.23189119,2029.4,2029.1,0.001]
[1772134579352,1.23380183,2029.6,2029.1,0.71051656]
[1772134582941,2.1792489,2029.6,2029.1,0.71051656]
[1772134584147,0.94544707,2029.5,2029.1,0.001]
[1772134584352,0.94544707,2029.5,2029.1,0.69312816]
[1772134584672,0.94544707,2029.5,2029.0,0.001]
[1772134584954,0.94544707,2029.3,2029.0,0.001]
[1772134585159,2.44344707,2029.3,2029.0,0.001]
[1772134585737,0.94544707,2029.2,2029.0,0.001]
[1772134586562,1.498,2029.3,2029.0,0.001]
[1772134587946,1.498,2029.3,2029.0,0.68093373]
[1772134589341,0.94544707,2029.2,2029.0,0.001]
[1772134589758,2.73000396,2029.3,2029.0,0.001]
[1772134590665,2.73000396,2029.3,2029.2,0.001]
[1772134591570,3.67545103,2029.3,2029.0,0.001]
[1772134591776,0.94544707,2029.2,2028.7,0.001]
[1772134592247,0.94544707,2029.2,2028.7,0.002]
[1772134593250,0.94544707,2029.0,2028.7,0.002]
[1772134594674,1.23207333,2029.1,2028.7,0.002]
[1772134595268,0.94544707,2029.0,2028.7,0.002]
[1772134595437,2.17761667,2029.0,2028.7,0.002]
[1772134596060,1.2321696,2029.0,2028.7,0.002]
[1772134596368,1.23210474,2029.1,2028.7,0.002]
[1772134598074,2.72995295,2029.3,2029.0,0.64758163]
[1772134598450,1.498,2029.3,2029.0,0.64758163]
[1772134598778,0.002,2029.4,2029.1,0.64575303]
[1772134598966,0.002,2029.4,2029.1,0.64475303]
[1772134599643,0.002,2029.6,2029.2,0.6419598]
[1772134600156,0.002,2029.6,2029.2,1.87392933]
[1772134602072,1.23189119,2029.4,2029.2,0.001]
[1772134602379,1.2338164,2029.6,2029.2,0.84442196]
[1772134602946,0.002,2029.4,2029.2,0.84442196]
[1772134603145,0.002,2029.4,2029.2,0.001]
[1772134603646,0.87336541,2029.4,2028.9,0.001]
[1772134603876,0.002,2029.4,2029.0,0.84442196]
[1772134604375,0.002,2029.4,2029.0,0.001]
[1772134605483,0.002,2029.4,2029.1,0.84342196]
[1772134605843,0.002,2029.4,2029.2,0.001]
[1772134607949,0.002,2029.6,2029.3,0.84342196]
[1772134608257,1.23367929,2029.8,2029.3,0.84442196]
[1772134608873,0.002,2029.8,2029.4,2.07531315]
[1772134609259,0.002,2029.8,2029.4,0.84342196]
[1772134610779,0.002,2029.8,2029.3,0.001]
[1772134610780,0.87336541,2029.8,2029.3,0.001]
[1772134610981,1.23170911,2029.7,2029.5,0.001]
[1772134611177,1.23170911,2029.7,2029.2,0.001]
[1772134611377,1.23170911,2029.7,2029.2,0.84442196]
[1772134613488,1.23170911,2029.7,2029.2,2.07643184]
[1772134613780,2.10506153,2029.8,2029.2,2.07643184]
[1772134613981,0.002,2030.0,2029.2,2.07643184]
[1772134613982,1.23354985,2030.0,2029.6,0.84342196]
[1772134614156,0.002,2030.0,2029.6,0.84342196]
[1772134614358,0.002,2030.0,2029.7,0.84442196]
[1772134614657,1.23352774,2030.0,2029.7,0.84342196]
[1772134614980,1.23352774,2030.0,2029.5,0.84442196]
[1772134615179,1.23352774,2030.0,2029.5,2.0762482]
[1772134615487,0.87136541,2029.9,2029.5,0.001]
[1772134615661,1.23352774,2030.0,2029.4,2.07628419]
[1772134615858,1.23352774,2030.0,2029.5,0.001]
[1772134616058,0.002,2029.7,2029.5,0.001]
[1772134616469,0.002,2029.7,2029.4,2.07628419]
[1772134616669,0.002,2029.7,2029.5,0.001]
[1772134619067,0.002,2029.7,2029.4,0.001]
[1772134619268,0.002,2029.7,2029.5,0.001]
[1772134620000,0.002,2029.7,2029.4,0.001]
[1772134620198,0.002,2029.7,2029.5,0.001]
[1772134622205,0.002,2030.0,2029.5,0.84442196]
[1772134622578,0.002,2030.2,2029.8,1.36085534]
[1772134622795,0.002,2030.2,2029.8,2.2042773]
[1772134623474,0.002,2030.2,2029.8,2.2052773]
[1772134623670,1.2334058,2030.2,2029.8,2.2052773]
[1772134623872,0.002,2030.2,2029.8,0.84442196]
[1772134624091,0.87336541,2030.2,2029.8,0.001]
[1772134627498,2.10482328,2030.2,2029.8,0.001]
[1772134627695,0.002,2030.0,2029.8,0.001]
[1772134627889,0.87136541,2029.9,2029.7,0.001]
[1772134628086,0.87136541,2029.9,2029.5,0.001]
[1772134629701,2.09231803,2029.8,2029.5,0.001]
[1772134630279,1.23163492,2029.9,2029.5,0.83274946]
[1772134630481,1.23356843,2030.0,2029.6,0.83174946]
[1772134630678,4.92777977,2030.2,2029.6,0.83174946]
[1772134631002,1.23146643,2030.1,2029.6,0.83174946]
[1772134631819,4.92777977,2030.2,2029.6,0.83174946]
[1772134631978,0.8606696,2030.1,2029.6,0.83174946]
[1772134633308,0.8606696,2030.1,2029.5,0.001]
[1772134633620,0.8606696,2030.1,2029.4,0.001]
[1772134634276,0.8606696,2029.9,2029.4,0.001]
[1772134635101,0.8606696,2029.9,2029.2,0.001]
[1772134635301,2.3776696,2029.8,2029.2,0.83274946]
[1772134636817,1.23170911,2029.7,2029.3,0.83174946]
[1772134637030,2.74868484,2029.8,2029.3,0.83174946]
[1772134637506,0.8606696,2030.1,2029.3,0.83174946]
[1772134637690,4.92591038,2030.1,2029.5,0.83174946]
[1772134638405,5.78657998,2030.1,2029.5,0.83174946]
[1772134638603,2.64407348,2029.9,2029.2,0.001]
[1772134638808,0.8606696,2029.6,2029.2,0.001]
[1772134638997,0.8606696,2029.6,2028.9,0.001]
[1772134638998,0.8606696,2029.5,2028.9,0.001]
[1772134640508,0.8606696,2029.5,2029.0,0.001]
[1772134640803,1.23189119,2029.4,2029.0,0.001]
[1772134641498,0.8606696,2029.3,2029.0,0.001]
[1772134642308,0.8606696,2029.3,2028.7,0.001]
[1772134642887,0.8606696,2029.1,2028.7,0.001]
[1772134643804,1.519,2029.0,2028.7,0.001]
[1772134644009,0.8606696,2028.9,2028.6,0.001]
[1772134647102,1.23225552,2028.8,2028.6,0.001]
[1772134647504,2.7511688,2029.0,2028.6,0.001]
[1772134649107,0.8606696,2028.9,2028.5,0.001]
[1772134650085,0.8606696,2028.9,2028.3,0.001]
[1772134651213,1.23225552,2028.8,2028.3,0.001]
[1772134651810,0.8606696,2028.7,2028.3,0.001]
[1772134652488,1.23225552,2028.8,2028.3,0.001]
[1772134652686,1.23225552,2028.8,2028.3,0.83274946]
[1772134653217,4.92902208,2028.9,2028.5,0.001]
[1772134654902,1.23219478,2028.9,2028.5,0.83274946]
[1772134655616,1.519,2029.0,2028.6,0.83174946]
[1772134655941,1.23210769,2029.1,2028.6,0.83174946]
[1772134657620,5.78914314,2029.2,2028.6,0.83174946]
[1772134658122,5.78914314,2029.2,2028.7,0.82171281]
[1772134660296,2.09297658,2029.2,2028.7,2.05400986]
[1772134660600,0.002,2029.6,2028.7,2.05400986]
[1772134660601,0.002,2029.6,2029.0,0.8468701]
[1772134661424,1.23365524,2029.8,2029.3,0.8468701]
[1772134661425,0.002,2029.8,2029.3,0.8468701]
[1772134661908,0.002,2029.8,2029.4,0.8468701]
[1772134662795,0.002,2029.8,2029.3,1.23191358]
[1772134662796,0.86142667,2029.8,2029.1,0.8468701]
[1772134663412,0.002,2029.8,2029.1,0.8468701]
[1772134664924,0.002,2029.6,2029.3,0.8468701]
[1772134666423,0.002,2029.6,2028.7,2.07918636]
[1772134666601,0.002,2029.6,2028.8,0.8468701]
[1772134667011,0.002,2029.6,2029.0,0.8468701]
[1772134672229,0.002,2029.6,2029.1,0.8468701]
[1772134672617,0.002,2029.8,2029.3,0.8468701]
[1772134674933,0.002,2029.8,2029.4,1.23189119]
[1772134676033,0.002,2029.8,2029.3,5.77451535]
[1772134676034,0.002,2029.8,2029.3,2.07878391]
[1772134676343,0.86142667,2029.8,2029.1,0.8468701]
[1772134676708,0.86142667,2029.8,2029.2,0.001]
[1772134676908,0.86142667,2029.8,2029.2,0.8478701]
[1772134677138,0.002,2029.6,2029.2,2.07983278]
[1772134680740,0.002,2029.6,2029.3,0.8468701]
[1772134681248,0.86142667,2029.6,2029.2,0.001]
[1772134683318,2.09321044,2029.6,2029.2,0.001]
[1772134683944,1.23378377,2029.6,2029.2,0.001]
[1772134684142,0.85942667,2029.5,2029.0,0.001]
[1772134685544,0.85942667,2029.3,2029.0,0.001]
[1772134686129,0.85942667,2029.3,2028.7,0.001]
[1772134686326,0.85942667,2029.3,2028.7,0.8478701]
[1772134686525,1.523,2029.4,2028.7,0.8478701]
[1772134687638,1.523,2029.4,2028.9,0.8468701]
[1772134688750,2.75489911,2029.4,2028.9,0.8468701]
[1772134688954,2.75489911,2029.4,2029.2,0.001]
[1772134689250,2.75689911,2029.4,2029.2,0.001]
[1772134689449,1.525,2029.4,2029.2,0.001]
[1772134689764,2.75689269,2029.4,2029.2,0.001]
[1772134692047,0.76948076,2029.3,2029.0,0.001]
[1772134692248,2.75689269,2029.4,2029.0,0.001]
[1772134692452,1.23389269,2029.4,2029.0,0.81460306]
[1772134692764,0.002,2029.4,2029.0,0.81460306]
[1772134693056,1.23389672,2029.4,2029.0,0.81460306]
[1772134693244,2.00337748,2029.4,2029.0,0.001]
[1772134694440,0.77148076,2029.4,2029.0,0.001]
[1772134695036,2.00337828,2029.4,2029.0,0.001]
[1772134695263,0.76948076,2029.3,2029.0,0.001]
[1772134697361,0.002,2029.4,2029.0,0.81460306]
[1772134699258,0.002,2029.4,2029.1,1.36161559]
[1772134699562,0.002,2029.6,2029.2,0.81360306]
[1772134700935,0.002,2029.6,2029.2,0.81460306]
[1772134701361,0.002,2029.4,2029.3,2.04555496]
[1772134701664,0.002,2029.6,2029.3,0.81360306]
[1772134704568,0.77148076,2029.6,2029.2,0.001]
[1772134705249,0.77148076,2029.6,2029.0,0.001]
[1772134706643,1.2318305,2029.5,2029.0,0.001]
[1772134706964,0.76948076,2029.4,2029.0,0.001]
[1772134708579,2.00143266,2029.3,2029.0,0.001]
[1772134711471,0.76948076,2029.2,2029.0,0.001]
[1772134712387,0.76948076,2029.2,2028.7,0.001]
[1772134712752,0.76948076,2029.0,2028.7,0.001]
[1772134715776,0.002,2029.2,2028.8,0.82322136]
[1772134716148,2.06941997,2029.2,2028.7,0.001]
[1772134716353,0.83538049,2029.1,2028.7,0.001]
[1772134717574,0.83538049,2029.1,2028.7,0.82422136]
[1772134717783,0.002,2029.2,2028.8,0.82322136]
[1772134719360,0.002,2029.2,2028.5,0.001]
[1772134719361,0.83538049,2029.0,2028.5,0.001]
[1772134719857,0.7962375,2028.8,2028.5,0.001]
[1772134721185,0.7962375,2028.8,2028.3,0.001]
[1772134721762,2.02855376,2028.7,2028.3,0.001]
[1772134725861,2.02855376,2028.7,2028.5,0.001]
[1772134726292,2.02855376,2028.7,2028.3,0.001]
[1772134726982,0.7962375,2028.1,2027.0,0.80672311]
[1772134727184,4.08484677,2028.6,2027.3,0.80772311]
[1772134727185,0.7962375,2028.4,2027.3,0.80772311]
[1772134727395,1.539,2028.2,2027.3,0.80672311]
[1772134727559,1.539,2028.2,2027.5,0.80672311]
[1772134727890,2.3352375,2028.2,2027.5,0.80672311]
[1772134728092,0.7962375,2028.1,2027.3,0.80672311]
[1772134728893,1.23274161,2028.0,2027.3,2.03987272]
[1772134729074,1.23274161,2028.0,2027.3,1.23314961]
[1772134729274,1.23274161,2028.0,2027.4,0.80772311]
[1772134729607,1.539,2028.2,2027.4,0.80772311]
[1772134729608,1.539,2028.2,2027.7,0.80672311]
[1772134729771,2.02870746,2028.5,2027.7,0.80672311]
[1772134730096,2.02870746,2028.5,2027.9,0.80672311]
[1772134731494,0.7962375,2028.4,2028.0,0.001]
[1772134731690,0.7962375,2028.4,2027.8,0.001]
[1772134734508,1.23255928,2028.3,2027.8,0.001]
[1772134734677,2.02879678,2028.3,2027.8,0.001]
[1772134735206,0.7962375,2028.2,2027.0,1.23331354]
[1772134735415,2.3342375,2028.1,2027.3,0.80672311]
[1772134735775,1.538,2028.1,2027.5,0.80672311]
[1772134736400,0.7962375,2028.0,2027.6,0.001]
[1772134736575,1.2328024,2027.9,2027.6,0.001]
[1772134737494,1.232789,2028.0,2027.6,0.80772311]
[1772134738207,1.232789,2028.0,2027.6,0.001]
[1772134738378,0.7962375,2027.9,2027.5,0.001]
[1772134738574,0.7962375,2027.7,2027.5,0.001]
[1772134739309,0.7962375,2027.7,2027.3,0.001]
[1772134739907,1.2328632,2027.8,2027.3,0.80772311]
[1772134740414,4.9314528,2027.9,2027.3,0.80772311]
[1772134740415,1.23284391,2027.9,2027.3,0.80772311]
[1772134740577,0.7962375,2027.9,2027.3,0.001]
[1772134742712,2.0291007,2027.8,2027.3,0.001]
[1772134745282,0.7962375,2027.7,2027.3,0.001]
[1772134747711,1.2329848,2027.6,2027.3,0.001]
[1772134748418,1.2329848,2027.6,2027.3,0.80772311]
[1772134748785,0.7962375,2027.9,2027.3,0.80772311]
[1772134748981,1.23274161,2028.0,2027.4,0.80672311]
[1772134749905,2.7727308,2028.1,2027.6,0.77688427]
[1772134750284,2.7727308,2028.1,2027.6,2.13849986]
[1772134750524,0.002,2028.1,2027.7,0.77688427]
[1772134750698,0.002,2028.3,2027.7,0.77688427]
[1772134751014,1.23456203,2028.3,2027.8,0.77688427]
[1772134751895,0.002,2028.3,2027.9,0.77688427]
[1772134752499,0.002,2028.1,2027.9,0.77688427]
[1772134753100,0.002,2028.3,2027.9,0.77688427]
[1772134755316,0.002,2028.3,2028.0,0.77688427]
[1772134755508,1.23437943,2028.6,2028.2,0.77688427]
[1772134756021,2.03449742,2028.6,2028.0,0.77688427]
[1772134756194,0.80011799,2028.5,2028.0,0.77688427]
[1772134757020,0.002,2028.6,2028.0,0.77688427]
[1772134757439,0.80211799,2028.6,2028.0,2.0096257]
[1772134757741,0.80211799,2028.6,2028.0,0.77688427]
[1772134759010,1.23243776,2028.5,2028.0,0.77688427]
[1772134761441,0.80011799,2028.4,2027.8,0.77688427]
[1772134762426,0.80011799,2028.4,2027.6,0.77688427]
[1772134762635,0.80011799,2028.4,2027.3,0.001]
[1772134762636,0.80011799,2028.3,2027.3,0.001]
[1772134763128,0.80011799,2028.3,2027.0,0.77688427]
[1772134763502,0.80011799,2028.1,2027.2,0.77688427]
[1772134764636,0.80011799,2028.4,2027.4,0.77688427]
[1772134765699,2.03267727,2028.3,2028.2,0.001]
[1772134766205,2.03267727,2028.3,2028.0,0.001]
[1772134767109,1.23452739,2028.4,2028.0,0.001]
[1772134767831,0.80211799,2028.4,2028.0,0.001]
[1772134769654,0.002,2028.4,2028.0,0.77788427]
[1772134770924,0.002,2028.4,2028.1,0.77688427]
[1772134771435,1.545,2028.6,2028.1,0.77688427]
[1772134771731,0.002,2028.6,2028.1,0.77688427]
[1772134772310,0.002,2028.6,2028.2,1.23262005]
[1772134772637,0.002,2028.6,2028.3,0.77688427]
[1772134774337,0.80011799,2028.5,2028.0,0.001]
[1772134774514,1.23442657,2028.6,2028.0,0.77788427]
[1772134775231,1.23438403,2028.6,2028.0,0.77788427]
[1772134775934,0.002,2028.6,2028.1,0.84382162]
[1772134776830,0.002,2028.6,2028.1,2.07644994]
[1772134777034,0.002,2028.6,2028.1,0.84382162]
[1772134777236,0.78578204,2028.6,2028.1,0.84382162]
[1772134777538,0.78578204,2028.6,2028.0,0.001]
[1772134777928,0.78578204,2028.6,2028.0,2.07756283]
[1772134778112,0.78578204,2028.6,2028.3,0.001]
[1772134778311,0.002,2028.4,2028.3,0.001]
[1772134780115,0.7976725,2028.4,2028.0,0.001]
[1772134781039,0.7956725,2028.2,2028.0,0.001]
[1772134783130,0.7956725,2028.2,2027.8,0.001]
[1772134783131,2.02835333,2028.1,2027.8,0.001]
[1772134783318,0.7956725,2028.0,2027.8,0.001]
[1772134785557,1.23268083,2028.1,2027.8,0.002]
[1772134785754,1.2325971,2028.3,2027.8,0.81064631]
[1772134785953,1.23453237,2028.4,2027.8,0.81064631]
[1772134786247,1.23450739,2028.4,2027.8,0.81064631]
[1772134787944,2.03017989,2028.4,2027.8,0.81064631]
[1772134788152,0.7956725,2028.3,2027.8,0.81064631]
[1772134788332,0.7956725,2028.3,2027.8,0.002]
[1772134789348,0.002,2028.4,2027.9,0.80864631]
[1772134789745,0.002,2028.4,2027.8,1.23482817]
[1772134789746,0.002,2028.4,2028.1,0.80864631]
[1772134790626,0.002,2028.4,2028.1,2.04131777]
[1772134791258,0.002,2028.4,2028.1,1.23267146]
[1772134791462,0.7956725,2028.3,2027.8,0.001]
[1772134791633,0.42938164,2028.3,2026.9,0.80864631]
[1772134791825,2.03017102,2028.4,2027.2,0.80864631]
[1772134792039,1.23449852,2028.4,2027.8,0.80864631]
[1772134792237,1.23449852,2028.4,2026.8,6.60414273]
[1772134792238,0.7956725,2028.3,2027.6,0.80864631]
[1772134792430,0.7956725,2028.3,2027.5,0.80964631]
[1772134792645,0.0053335,2028.2,2027.5,0.80964631]
[1772134792844,0.801006,2028.2,2027.5,0.80964631]
[1772134793232,0.801006,2028.2,2027.5,0.001]
[1772134794149,1.23268083,2028.1,2027.5,0.001]
[1772134795056,2.02835333,2028.1,2027.5,0.001]
[1772134795848,0.7956725,2028.1,2027.5,0.80964631]
[1772134796069,1.23266125,2028.2,2027.5,0.80964631]
[1772134796358,2.02833375,2028.2,2027.5,0.80964631]
[1772134797639,0.00533284,2028.1,2027.5,0.80964631]
[1772134800437,0.80100534,2028.1,2027.5,0.80964631]
[1772134800933,0.80100534,2028.1,2027.6,0.80864631]
[1772134801339,0.80100534,2028.1,2027.5,0.001]
[1772134801539,0.7956725,2027.9,2026.8,0.80864631]
[1772134801758,0.7956725,2027.8,2026.8,0.80864631]
[1772134801944,0.7956725,2027.8,2026.9,0.80864631]
[1772134802345,0.7956725,2027.6,2026.9,0.80864631]
[1772134802545,0.7956725,2027.6,2026.6,0.80864631]
[1772134802763,0.7956725,2027.6,2026.5,0.799]
[1772134803066,0.7956725,2027.6,2026.2,2.04243789]
[1772134803570,0.7956725,2027.6,2026.3,0.80864631]
[1772134804443,2.0286573,2027.6,2027.5,0.001]
[1772134804645,0.7956725,2027.4,2027.2,0.001]
[1772134804853,0.7956725,2027.4,2026.3,0.80864631]
[1772134805068,0.7956725,2027.4,2026.3,2.04241295]
[1772134805454,0.7956725,2027.4,2026.4,0.80864631]
[1772134806578,0.7956725,2027.1,2026.0,0.80864631]
[1772134808275,0.00533284,2027.0,2026.3,0.80864631]
[1772134808481,0.00533284,2027.0,2026.4,1.23371496]
[1772134808651,0.00533284,2027.0,2026.5,0.80864631]
[1772134809182,0.7956725,2026.9,2026.1,2.04250862]
[1772134809478,0.7956725,2026.9,2026.2,0.80864631]
[1772134810181,0.7956725,2026.9,2026.0,2.02562714]
[1772134810548,0.84288334,2026.7,2026.0,2.02564692]
[1772134810749,0.84288334,2026.7,2026.0,2.02563447]
[1772134811280,0.84288334,2026.7,2026.0,2.02565112]
[1772134811495,4.93225308,2027.5,2026.0,3.14169882]
[1772134811658,0.84288334,2027.8,2026.4,0.79169321]
[1772134812057,0.84288334,2027.3,2026.3,0.79169321]
[1772134812590,2.07611143,2027.2,2026.4,1.23371496]
[1772134812757,0.84288334,2027.1,2026.4,1.23371496]
[1772134813779,0.84288334,2027.5,2026.6,0.79169321]
[1772134814782,0.00966634,2027.4,2026.8,0.79169321]
[1772134816778,0.01166634,2027.4,2026.9,1.23341062]
[1772134818455,1.24478195,2027.4,2026.8,1.23343693]
[1772134818658,0.84288334,2027.3,2026.8,1.23343693]
[1772134819183,2.07605159,2027.3,2026.7,0.001]
[1772134819391,0.84288334,2027.3,2026.7,0.001]
[1772134821164,0.84288334,2027.2,2026.7,0.001]
[1772134821310,0.84288334,2027.2,2026.1,1.36441111]
[1772134821311,0.84288334,2026.9,2025.9,1.23397442]
[1772134822499,0.84288334,2026.9,2025.9,2.02566763]
[1772134823604,0.84288334,2026.6,2025.9,2.02566763]
[1772134823828,0.84288334,2026.6,2025.5,5.72863041]
[1772134823977,0.84288334,2026.5,2025.6,0.79169321]
[1772134824610,0.84288334,2026.5,2025.5,4.9369372]
[1772134825218,0.84288334,2026.5,2025.5,2.02595635]
[1772134825383,0.84288334,2026.5,2025.5,1.23426314]
[1772134825583,0.84288334,2026.3,2025.4,4.93717668]
[1772134826122,0.85254968,2026.2,2025.4,4.93717668]
[1772134826288,0.85254968,2026.2,2025.3,3.45550854]
[1772134826488,0.85254968,2026.2,2025.3,2.02604731]
[1772134826692,0.85254968,2026.2,2025.4,0.79169321]
[1772134828718,0.00966634,2026.2,2025.7,0.79169321]
[1772134829189,1.24352598,2026.2,2025.7,0.79169321]
[1772134829588,0.00966634,2026.2,2025.7,0.79169321]
[1772134829913,1.24351584,2026.2,2025.5,2.02595635]
[1772134830115,2.08639918,2026.2,2025.5,2.02595635]
[1772134830816,2.08639918,2026.2,2025.6,0.001]
[1772134831032,0.85254968,2026.2,2025.6,0.79269321]
[1772134831320,1.24350344,2026.2,2025.6,0.79269321]
[1772134832005,1.24350428,2026.2,2025.6,0.79269321]
[1772134833017,1.24350428,2026.2,2025.6,2.02685091]
[1772134833414,0.84288334,2026.1,2025.6,1.2351577]
[1772134833647,1.24350428,2026.2,2025.7,0.79169321]
[1772134833840,2.08638762,2026.2,2025.6,0.001]
[1772134834638,0.84288334,2026.0,2025.6,0.001]
[1772134834998,0.84288334,2025.8,2025.6,0.001]
[1772134836307,0.84288334,2025.8,2025.1,1.23450611]
[1772134836512,0.84288334,2025.8,2024.8,5.72651615]
[1772134836819,0.84288334,2025.8,2024.9,0.78786985]
[1772134837022,0.84288334,2025.8,2024.4,0.08192]
[1772134837023,0.79384267,2025.4,2024.4,2.02280365]
[1772134838110,1.36441111,2025.3,2024.4,2.02280365]
[1772134838313,0.79384267,2025.2,2024.4,2.02280365]
[1772134838501,0.79384267,2025.2,2024.4,1.2349338]